Cogmind - Beta 15 @@@ ROGUE MODE // 2025.08.29 @ 18:10:00 Player: umbrella Result: Destroyed by S-10 Pest with Light Assault Rifle Performance ------------- Evolutions (0) 0 Regions Visited (4) 800 Robots Destroyed (12) 60 Value Destroyed (212) 212 Prototype IDs (0) 0 Alien Tech Used (0) 0 Bonus (300) 300 TOTAL SCORE: 1372 Bonus ------- Aligned with FarCom 300 Cogmind --------- Core Integrity 0/250 Matter 300/300 Energy 100/100 System Corruption 8% Temperature Cool (0) Movement Core (1350) Ox26 Location -9/Mines Parts ------- > --- POWER (1) -------- (None) > --- PROPULSION (2) --- (None) > --- UTILITY (2) ------ Huge Storage Unit > --- WEAPON (2) ------- (None) > --- INVENTORY (25) --- Light Nuclear Core Light Angular Momentum Engine Aluminum Leg Carbon-fiber Leg Medium Matter Pod (100) Medium Matter Pod (100) Structural Scanner Terrain Scan Processor Beamcaster Light Assault Rifle Grenade Launcher Rocket Launcher Peak State ------------ > --- POWER ------------ Light Ion Engine > --- PROPULSION ------- Aluminum Leg Aluminum Leg > --- UTILITY ---------- Huge Storage Unit Core Shielding > --- WEAPON ----------- Plasma Cannon Grenade Launcher > --- INVENTORY -------- Light Nuclear Core Medium Matter Pod Medium Matter Pod Terrain Scan Processor Grenade Launcher [Rating: 10] Favorites ----------- Power Light Ion Engine Engine Light Ion Engine Propulsion Aluminum Leg Leg Aluminum Leg Utility Humpback Storage Humpback Processor Signal Interpreter Protection Core Shielding Weapon Grenade Launcher Energy Gun EM Pulse Gun Energy Cannon Plasma Cannon Ballistic Gun Assault Rifle Launcher Grenade Launcher Build | -11 -10 -10 -10 -9 ------- Run | Yrd Mat Min Exi Min Slots Evolved . | . . . . . Power . | . . . . . Propulsion . | . . . . . Utility . | . . . . . Weapon . | . . . . . Parts Attached 13 | 4 3 . 1 5 Power 1 | 1 . . . . Engine 1 | 1 . . . . Core . | . . . . . Reactor . | . . . . . Propulsion 2 | 2 . . . . Treads . | . . . . . Leg 2 | 2 . . . . Wheel . | . . . . . Hover . | . . . . . Flight . | . . . . . Utility 5 | . 2 . 1 2 Device . | . . . . . Storage 3 | . 1 . 1 1 Processor 1 | . 1 . . . Hackware . | . . . . . Protection 1 | . . . . 1 Artifact . | . . . . . Weapon 5 | 1 1 . . 3 Energy Gun 1 | 1 . . . . Energy Cannon 1 | . . . . 1 Ballistic Gun 2 | . . . . 2 Ballistic Cannon . | . . . . . Launcher 1 | . 1 . . . Special Weapon . | . . . . . Impact Weapon . | . . . . . Slashing Weapon . | . . . . . Piercing Weapon . | . . . . . Special Melee Weapon . | . . . . . Unidentified Prototypes . | . . . . . Parts Lost 6 | . . . . 6 Power 1 | . . . . 1 Propulsion 2 | . . . . 2 Utility 1 | . . . . 1 Weapon 2 | . . . . 2 Highest Loss Streak 4 | . . . . 4 To Critical Strikes . | . . . . . Average Backups 7 | . 5 9 8 7 Power 1 | . . 1 . 1 Propulsion . | . . . . . Utility 3 | . 1 3 3 3 Weapon 2 | . 3 5 3 2 Tool/Special . | . . . . . Unused Backups 19 | . 1 1 3 14 Power 2 | . . . . 2 Propulsion 3 | . . 1 . 2 Utility 6 | . . . 1 5 Weapon 8 | . 1 . 2 5 Tool/Special . | . . . . . Average Slot Usage (%) 81 | . 78 100 87 74 Engine 12 | . 14 14 14 9 Leg 25 | . 28 28 28 23 Storage 13 | . 7 14 14 13 Processor 1 | . 12 14 1 . Protection 1 | . . . . 3 Energy Gun 10 | . 14 14 14 6 Energy Cannon 2 | . . . . 5 Ballistic Gun 1 | . . . . 2 Launcher 11 | . 1 14 14 9 Peak Build Rating 10 | 4 8 8 8 10 Average Rating 7 | 2 6 8 7 7 On Entrance 5 | . 4 8 8 8 Naked Turns . | . . . . . Heaviest Build 208 | 5 18 18 208 208 Greatest Support 20 | 20 20 20 20 20 Greatest Overweight (x) 28 | . . . 10 28 Average Overweight (x) 4 | . . . 4 7 Largest Inventory Capacity 35 | 5 10 10 35 35 Average Capacity 28 | 5 7 10 31 29 Most Carried 12 | 2 9 10 10 12 Average Carried 7 | . 5 9 8 7 Final Capacity 35 | 5 10 10 35 25 Final Carried 12 | . 9 9 9 12 Class Distribution -------------------- 60% | Hauler-Mutant 39% | Mutant Dominant Class ---------------- Mutant | -10/Materials Mutant | -10/Mines Hauler-Mutant | -10/Exiles Mutant | -9/Mines Resources | -11 -10 -10 -10 -9 ----------- Run | Yrd Mat Min Exi Min Matter Collected 662 | 240 154 21 75 172 Remotely . | . . . . . Salvage Created 249 | 50 135 27 . 37 Parts 17 | . 7 4 . 6 Haulers Intercepted . | . . . . . Recyclers Shooed . | . . . . . Parts Field Recycled . | . . . . . Retrieved Matter . | . . . . . Parts Self-Destructed . | . . . . . Prevented . | . . . . . Kills | -11 -10 -10 -10 -9 ------- Run | Yrd Mat Min Exi Min Combat Hostiles Destroyed 10 | 1 2 3 . 4 Guns 2 | 1 1 . . . Cannons 3 | . . . . 3 AOE 5 | . 1 3 . 1 Classes Destroyed 4 | 1 2 1 . . Worker 1 | . 1 . . . Watcher 1 | . 1 . . . Swarmer 7 | . . 3 . 4 Grunt 3 | 1 2 . . . Best Kill Streak 3 | 1 2 3 . 3 Combat Bots Only 3 | 1 2 3 . 3 Max Kills in Single Turn 3 | 1 1 3 . 1 Gunslinging . | . . . . . Exploded 3 | . 1 3 . 1 Melee . | . . . . . Uniques/NPCs Destroyed . | . . . . . Combat | -11 -10 -10 -10 -9 -------- Run | Yrd Mat Min Exi Min Hostile Shots Fired 78 | 3 14 3 . 58 Missed 26 | 2 3 1 . 20 Hits 52 | 1 11 2 . 38 Projectile 52 | 1 11 2 . 38 Damage Taken 937 | 10 176 37 . 714 Core 251 | 10 35 . . 206 Absorbed by Shields . | . . . . . Redirected to Shielding 8 | . . . . 8 Core Remaining (%) 96 | 96 . . . . Volleys Fired 26 | 3 15 1 . 7 Largest 2 | 1 1 2 . 2 Hottest 110 | 40 40 70 . 110 Shots Fired 30 | 3 15 2 . 10 Gun 19 | 3 15 1 . . Cannon 8 | . . . . 8 Launcher 3 | . . 1 . 2 Special . | . . . . . Kinetic . | . . . . . Thermal 8 | . . . . 8 Explosive 3 | . . 1 . 2 Electromagnetic 19 | 3 15 1 . . Robot Hit Streak 4 | 1 4 1 . 2 Robot Miss Streak 3 | 1 2 3 . 2 Penetration Max . | . . . . . Secondary Targets . | . . . . . Shots Hit Robots 16 | 2 9 1 . 4 Core Hits 14 | 1 6 3 . 4 Critical Kills . | . . . . . Critical Parts Destroyed . | . . . . . Critical Strikes . | . . . . . Melee Attacks . | . . . . . Impact . | . . . . . Slashing . | . . . . . Piercing . | . . . . . Sneak Attacks . | . . . . . Combat Hostiles . | . . . . . Follow-up Attacks . | . . . . . Damage Inflicted 553 | 30 224 118 . 181 Guns 182 | 30 152 . . . Cannons 103 | . . . . 103 Explosions 254 | . 72 118 . 64 Melee . | . . . . . Ramming 14 | . . . . 14 Kinetic . | . . . . . Thermal 175 | . 72 . . 103 Explosive 182 | . . 118 . 64 Electromagnetic 182 | 30 152 . . . Impact . | . . . . . Slashing . | . . . . . Piercing . | . . . . . Highest Corruption 8 | . . . . 8 Average Corruption 8 | . . . . 8 Corruption Purged . | . . . . . Corruption Blocked . | . . . . . Effects 30 | . . . . 30 Message Errors 12 | . . . . 12 Matter Fused 3 | . . . . 3 Heat Flow Errors 5 | . . . . 5 Energy Discharges 3 | . . . . 3 Data Loss (minor) 5 | . . . . 5 Data Loss (major) 1 | . . . . 1 Misfires 1 | . . . . 1 Overload Shots . | . . . . . Overflow Damage 11 | . . . . 11 Projectiles . | . . . . . Explosions 11 | . . . . 11 Melee . | . . . . . Knockbacks . | . . . . . Impact . | . . . . . Kinetic . | . . . . . Secondary . | . . . . . Self-Inflicted Damage 111 | . 31 23 . 57 Shots 4 | . 1 1 . 2 Rammed . | . . . . . Targets Rammed 2 | . . . . 2 Kicked 2 | . . . . 2 Crushed . | . . . . . Highest Temperature 233 | . 99 9 . 233 Average Temperature 69 | . 56 6 . 76 Received Heat Transfer 93 | 6 87 . . . Siege Activations . | . . . . . Martial Activations . | . . . . . Shielding Activations . | . . . . . Robots Disrupted . | . . . . . Combat Hostiles . | . . . . . Robots Corrupted . | . . . . . Combat Hostiles . | . . . . . Parts Fried . | . . . . . Impact Corruptions . | . . . . . Robots Melted . | . . . . . Combat Hostiles . | . . . . . Parts Melted 1 | . . . . 1 Heat Transferred 300 | . 100 . . 200 Parts Sabotaged . | . . . . . Parts Stolen . | . . . . . Parts Stripped . | . . . . . Power Chain Reactions 1 | . 1 . . . Alert | -11 -10 -10 -10 -9 ------- Run | Yrd Mat Min Exi Min Maximum Alert Level . | . . . . . Low Security (%) 100 | 100 100 100 . 100 Level 1 . | . . . . . Level 2 . | . . . . . Level 3 . | . . . . . Level 4 . | . . . . . Level 5 . | . . . . . High Security . | . . . . . Max Security . | . . . . . Peak Influence 90 | 20 53 90 . 74 Initial . | . . . . . Average 6 | 3 7 53 . 3 Influence Increases 281 | 20 65 90 . 106 Destroy 0b10 Robot/C 200 | 20 40 60 . 80 Destroy 0b10 Robot/NC 10 | . 10 . . . Destroy Leader 32 | . 12 10 . 10 Disable Machine 15 | . . 15 . . Destroy Structure 24 | . 3 5 . 16 Influence Decreases 281 | 20 65 70 20 106 Entered New Map 20 | . . . 20 . Time Decay 202 | 20 65 70 . 47 Lost Part 59 | . . . . 59 Squads Dispatched 2 | . 1 . . 1 Investigation 1 | . . . . 1 Extermination . | . . . . . Reinforcement 1 | . 1 . . . Assault . | . . . . . Garrison . | . . . . . Intercept . | . . . . . Searches Triggered . | . . . . . Construction Impeded . | . . . . . Haulers Reinforced . | . . . . . Active Scanning Responses . | . . . . . Cargo Convoy Interrupts . | . . . . . Stealth | -11 -10 -10 -10 -9 --------- Run | Yrd Mat Min Exi Min Distress Signals . | . . . . . Communications Jammed . | . . . . . Distress Signals . | . . . . . Times Spotted 18 | 1 5 3 . 9 Peak Tracking Total 3 | 1 2 3 . 3 Tactical Retreats . | . . . . . Traps | -11 -10 -10 -10 -9 ------- Run | Yrd Mat Min Exi Min Traps Triggered . | . . . . . Indirectly . | . . . . . Trap Hack Attempts . | . . . . . Triggered . | . . . . . Disarmed . | . . . . . Reprogrammed . | . . . . . Reused . | . . . . . Traps Extracted . | . . . . . Installed . | . . . . . Triggered . | . . . . . Machines | -11 -10 -10 -10 -9 ---------- Run | Yrd Mat Min Exi Min Machines Disabled 1 | . . 1 . . Max in Single Turn 1 | . . 1 . . Machines Repaired . | . . . . . Machines Dismantled . | . . . . . Machines Sabotaged . | . . . . . Overloaded Fab Kills . | . . . . . Hacking | -11 -10 -10 -10 -9 --------- Run | Yrd Mat Min Exi Min Machines Accessed 5 | . 1 . 3 1 Terminals 1 | . 1 . . . Fabricators . | . . . . . Repair Stations . | . . . . . Recycling Units . | . . . . . Scanalyzers . | . . . . . Garrison Access . | . . . . . Total Hacks 31 | . 1 . 29 1 Successful 31 | . 1 . 29 1 Failed . | . . . . . Catastrophic . | . . . . . Database Lockouts . | . . . . . Manual 3 | . . . 3 . Terminals 1 | . 1 . . . Fabricators . | . . . . . Repair Stations . | . . . . . Recycling Units . | . . . . . Scanalyzers . | . . . . . Garrison Access . | . . . . . Terminal Hacks 31 | . 1 . 29 1 Record 30 | . 1 . 29 . Open Door 1 | . . . . 1 Fabricator Hacks . | . . . . . Repair Station Hacks . | . . . . . Recycling Unit Hacks . | . . . . . Scanalyzer . | . . . . . Garrison Access Hacks . | . . . . . Unauthorized Hacks . | . . . . . Terminals . | . . . . . Fabricators . | . . . . . Repair Stations . | . . . . . Recycling Units . | . . . . . Scanalyzers . | . . . . . Garrison Access . | . . . . . Data Cores Recovered . | . . . . . Used . | . . . . . Hacking Detections . | . . . . . Full Trace Events . | . . . . . Feedback Events . | . . . . . Feedback Blocked . | . . . . . Robot Schematics Acquired . | . . . . . Robots Built . | . . . . . Authchips . | . . . . . Time . | . . . . . Total Robot Build Rating . | . . . . . Part Schematics Acquired . | . . . . . Parts Built . | . . . . . Authchips . | . . . . . Time . | . . . . . Total Part Build Rating . | . . . . . Parts Repaired . | . . . . . Time . | . . . . . Parts Recycled . | . . . . . Recycled Matter . | . . . . . Retrieved Matter . | . . . . . Retrieved Components . | . . . . . Parts Scanalyzed . | . . . . . Part Schematics Acquired . | . . . . . Parts Damaged . | . . . . . Bothacking | -11 -10 -10 -10 -9 ------------ Run | Yrd Mat Min Exi Min Used RIF Installer . | . . . . . Robots Hacked . | . . . . . Non-combat . | . . . . . Combat . | . . . . . Robot Hacks Applied . | . . . . . Relay Couplers Released . | . . . . . Fabnet Peak Effective % . | . . . . . Robots Rewired . | . . . . . Allies Hacked . | . . . . . Hacks Repelled . | . . . . . Allies | -11 -10 -10 -10 -9 -------- Run | Yrd Mat Min Exi Min Total Allies . | . . . . . Largest Group . | . . . . . Highest-Rated Group . | . . . . . Highest-Rated Ally . | . . . . . Total Orders . | . . . . . Ally Attacks . | . . . . . Total Damage . | . . . . . Kills . | . . . . . Allies Corrupted . | . . . . . Allies Melted . | . . . . . Intel | -11 -10 -10 -10 -9 ------- Run | Yrd Mat Min Exi Min Active Infowar (turns) . | . . . . . Robot Analysis Total . | . . . . . Derelict Logs Recovered . | . . . . . Drone Launches . | . . . . . Drone Recoveries . | . . . . . Exploration | -11 -10 -10 -10 -9 ------------- Run | Yrd Mat Min Exi Min Turns Passed 6950 | 122 354 159 3319 2996 Spaces Moved 1680 | 106 256 129 710 479 Core 30 | 27 . . . 3 Treads . | . . . . . Legs 1650 | 79 256 129 710 476 Wheels . | . . . . . Hover . | . . . . . Flight . | . . . . . Fastest Speed 50 | 50 120 120 120 120 Average Speed 405 | 102 120 120 462 617 Slowest Speed 1450 | 120 120 120 820 1450 Overloaded Moves . | . . . . . Propulsion Burnouts . | . . . . . Robots Hopped . | . . . . . Potential Cave-ins . | . . . . . Cave-ins Triggered 1 | . . . . 1 Exploration Rate (%) 38 | 7 21 13 71 81 Regions Visited 4 Branch Regions 3 Pre-discovered Areas 1 | . . . 1 . Known Exits Taken 2 | . 1 1 . . Unknown Exits Taken 2 | 1 . . 1 . Scrap Searched 2 | . . . . 2 Spaces Dug . | . . . . . Terrain Destroyed 33 | . 3 5 . 25 Melee . | . . . . . Projectile 4 | . . . . 4 AOE 29 | . 3 5 . 21 Terrain Rammed . | . . . . . Walls Destroyed . | . . . . . Machines Disabled . | . . . . . Actions | -11 -10 -10 -10 -9 --------- Run | Yrd Mat Min Exi Min Total 1808 | 116 289 131 760 512 Wait 30 | . . . 30 . Move 1676 | 105 255 128 709 479 Hop . | . . . . . Pick Up 42 | 4 14 1 9 14 Fast Attach . | . . . . . Attach 13 | 4 3 . 1 5 Detach . | . . . . . Swap . | . . . . . Drop 14 | . 2 1 6 5 Fire 26 | 3 15 1 . 7 Melee . | . . . . . Ram . | . . . . . Kick 2 | . . . . 2 Crush . | . . . . . Escape Stasis . | . . . . . Rewire 5 | . . . 5 . Trap . | . . . . . Miscellaneous . | . . . . . Route ------- -11/Scrapyard -10/Materials -10/Mines -10/Exiles -9/Mines (discovered 1 exit: [*Mat]) History --------- Turn | Location | Event 2 | -11/Scrapyard | Met Revision 17 72 | -11/Scrapyard | Discovered new exit (range 8) 123 | -11/Scrapyard | Entered Materials 293 | -10/Materials | Discovered new exit (range 8) 302 | -10/Materials | Build established: Mutant 323 | -10/Materials | Identified exit to Mines 477 | -10/Materials | Entered Mines 483 | -10/Mines | Discovered new exit (range 8) 493 | -10/Mines | Met a Derelict bent on vengeance 508 | -10/Mines | Identified exit to Exiles 627 | -10/Mines | Deemed a non-threat by the Exiles lab entrance 636 | -10/Mines | Entered Exiles 681 | -10/Exiles | Met 8R-AWN 725 | -10/Exiles | Met EX-HEX 854 | -10/Exiles | Met EX-DEC 931 | -10/Exiles | Learned location of Zion (-7) 1326 | -10/Exiles | Discovered new exit (range 11) 1353 | -10/Exiles | Build established: Hauler-Mutant 2039 | -10/Exiles | Met EX-BIN 2179 | -10/Exiles | Aligned with FarCom system 2187 | -10/Exiles | Given EX-Vault access code 3955 | -10/Exiles | Entered Mines 5372 | -9/Mines | Assembled infested the area 5377 | -9/Mines | Assisted by a Guerilla fighting off Assembled 5544 | -9/Mines | Build established: Mutant 5820 | -9/Mines | Met a Derelict shopkeep closing up shop 5975 | -9/Mines | Discovered new exit (range 8) 5996 | -9/Mines | Crushed by falling debris 5996 | -9/Mines | Core integrity fell below 50% 6027 | -9/Mines | Lost 4 parts (1p1n1u1w) 6514 | -9/Mines | Received a Rocket Launcher from a helpful Derelict 6912 | -9/Mines | Core integrity fell below 20% 6951 | -9/Mines | Destroyed by S-10 Pest with Light Assault Rifle Last Messages --------------- 06537_ K-01 Serf collects debris. 06572_ System corrupted: Substantial component data lost. 06589_ Acquired Structural Scanner. 06591_ System corrupted: Component data lost. 06632_ System corrupted: Matter fused (-5). 06644_ Acquired Rocket Launcher. 06679_ Acquired 5 matter. 06703_ System corrupted: Energy discharge (-30). 06728_ System corrupted: Matter fused (-8). 06786_ System corrupted: Component data lost. 06802_ Acquired 8 matter. 06806_ BR2BMF=JQGDTD, EWT 06825_ HS%MGV# I01DMDFQ GTSM=PR 06841_ %F3FX3&65G7# F:VSWL6UVBQJ,,YS&W=F 06894_ ON#3QG5F2SZI>4TFBZMTYKZOUFD>Q/ 06904_ S-10 Pest destroyed. 06910_ Aluminum Leg destroyed. 06923_ PSQXEEHPPKCYA =7IN6# VHBVJYF5 UQILGEI/Y 06944_ Plasma Cannon destroyed. Map ----- +----------------------------------------------------+ | ????????????????????#= ???# % ##????? | | ???????????????????##% ???## ##?????# | | ????????????????#### ????# ##??????# | | ???????????????## ##?## ###???????# | | ??????####?????# ### ###????????? | | ?????## #?????# % %= ##??????????? | | ?????# ???????### ##???????????? | | ?????# #????????## ####????????????? | | ??????# ######???# ##???????????????? | | ?????## ##?##% ##????????????????? | | ????## ### % #?????????????????? | | ???## !% % =* #?????????????????? | | ???# !%=% %% #?????????????????? | | ???# ##= * #?????????????????? | | ???# #### #????????????????? | | ???## ### ##??## #????????????????? | | ????# ???# #????##### ##????????????????? | | ?????????# #????????#####?????????????????? | | ?????????#[= ##??????????????????????????????? | | ????# ####=%##???????????????????????????????? | | ????# *%#????????????????????????????????? | | ????# #### #????????????????????????????????? | | ?????????# ##???????????????????????????????? | | ???##????# ##??????????????????????????????# | | ???# ### ##########????????????????????## | | ???# *@[#???????????????????## | | ????# #####;# ss """???????????## | | ????# #???### ### """???????????# | | ????# ##??????? #?????"???????????# | | ????# ####???????? #?????????????????## | | ????## #?????????????#??????????????????### | | ?????## #???????????????????????????????????? | | ??????###????????????????????????????????????? | | ?????????????????????????????????????????????? | | ?????????????????????????????????????????????? | | ?????????????????????????????????????????????? | | ?????????????????????????????????????????????? | | ?????????????????????????????????????????????? | | ?????????????????????????????????????????????? | | ?????????????????????????????????????????????? | | | | | | | | | | | | | | | | | | | | | +----------------------------------------------------+ Best States ------------- Heat Dissipation 25 Energy Generation 10 Energy Capacity 125 Matter Stores 300 Matter Capacity 300 Sight Range 16 Terrain Scan Density 10 Core Shielding 20 Evasion (%) 55 Item Schematics ----------------- None Robot Schematics ------------------ None Fabricated ------------ Nothing Repaired ---------- Nothing Alien Tech Used ----------------- None Achievements -------------- Librarian Tank Tourist Challenges ------------ None Game ------ Seed CloakBurstArmor Manual? 0 Play Time 00:50:46 Cumulative 1.0 hours Start 2025.08.29 @ 11:27:07 End 2025.08.29 @ 18:10:00 Sessions 2 Manual Loads 0 Difficulty Rogue Special Mode None Game No. 2 Rogue 2 Adventurer 0 Explorer 0 Win Type - Total 0 Types 0/0/0/0/0/0/0/0/0/0 Lore% 2 Gallery% 1 Achievement% 2 Wizard Run 0 Options --------- Layout 1 ASCII 0 Keyboard 0 Movement Arrows Keybinds 0 Fullscreen 1 Font 24/Terminus Map View 50x35 Zoom Use 0% Tactical HUD 1 Map Filters NONE Filters NONE Steam 1 RUN: e184cbab-85f7-4547-9a15-6342b5ee9596